bitfinex/quotes_ETHUSD_20220202
["timestamp","ask_amount","ask_price","bid_price","bid_amount"]
[1643830799802,0.69597207,2713.8,2713.2,0.17412969]
[1643830800001,0.69597207,2713.8,2713.6,0.00524192]
[1643830800403,0.72837477,2713.9,2713.6,0.00524192]
[1643830800604,0.9211771,2714.1,2713.8,0.01264974]
[1643830800805,3.1342,2714.8,2713.9,0.53]
[1643830801007,3.6851436,2715.1,2714.0,0.7142]
[1643830801207,1.2418389,2715.2,2714.0,0.7142]
[1643830801208,0.00523884,2715.2,2714.0,2.7142]
[1643830801406,0.00523884,2715.2,2714.6,0.69689752]
[1643830801608,0.00523884,2715.2,2714.7,0.53]
[1643830801812,0.00523884,2715.2,2715.1,4.10170893]
[1643830802007,0.00523884,2715.2,2715.1,3.95]
[1643830802207,0.1943268,2715.9,2714.7,12.2373]
[1643830802406,0.00221525,2715.2,2714.7,9.1186]
[1643830802606,0.00221525,2715.2,2714.8,1.0]
[1643830803042,0.00221525,2715.2,2714.8,2.98429423]
[1643830803242,0.9207784,2715.3,2714.8,1.0]
[1643830803443,0.003829,2716.3,2715.0,6.99993]
[1643830803646,0.003829,2716.3,2715.1,2.53]
[1643830803647,1.37547498,2716.3,2715.1,2.53]
[1643830803844,2.29597638,2716.2,2715.2,0.1841]
[1643830804041,1.37547498,2716.1,2715.3,0.53]
[1643830804242,1.37547498,2716.1,2715.4,0.1841]
[1643830804441,1.37547498,2716.1,2715.5,0.1474935]
[1643830804641,1.37547498,2716.1,2715.6,0.1841]
[1643830804844,1.37547498,2716.1,2715.4,2.02495]
[1643830805240,1.37547498,2716.1,2715.4,3.02495]
[1643830805441,1.37547498,2716.1,2715.4,2.02495]
[1643830805642,0.9205305,2716.0,2715.5,1.0]
[1643830805941,0.9205305,2716.0,2715.4,2.02495]
[1643830805942,0.9205305,2716.0,2715.6,0.1841]
[1643830806142,0.9205305,2716.0,2715.5,0.1841]
[1643830806793,0.9205305,2716.0,2715.4,0.1841]
[1643830806992,0.9205305,2716.0,2715.4,1.1046]
[1643830807389,0.9205305,2716.0,2715.6,0.86689763]
[1643830807592,3.99508203,2716.7,2715.7,2.54278302]
[1643830807593,0.01261641,2716.7,2715.7,2.54278302]
[1643830807795,1.37672721,2716.6,2716.2,0.19775181]
[1643830807992,1.3523817,2717.7,2716.3,0.7139]
[1643830807993,0.69466562,2717.3,2716.3,0.7139]
[1643830808391,0.69466562,2717.3,2716.5,0.6706809]
[1643830808593,0.69466562,2717.3,2716.6,0.53]
[1643830808594,1.37664466,2717.2,2716.6,0.53]
[1643830808794,1.57658238,2717.2,2716.6,0.53]
[1643830808995,1.32664466,2717.1,2716.7,0.92008]
[1643830809192,1.32664466,2717.1,2716.7,1.45008]
[1643830809594,0.00527669,2717.0,2716.7,1.45008]
[1643830809798,0.00527669,2717.0,2716.8,2.0]
[1643830809997,0.02110284,2717.5,2716.9,6.79987]
[1643830810295,0.02110284,2717.5,2717.0,0.1839]
[1643830810539,0.9369383,2718.0,2717.0,0.53]
[1643830810540,0.19332532,2717.2,2717.0,0.53]
[1643830810741,0.19332532,2717.2,2716.8,1.32209997]
[1643830810742,0.19332532,2717.2,2716.8,0.1839]
[1643830810942,0.19332532,2717.2,2716.7,3.5268]
[1643830811346,0.72471203,2717.0,2716.7,3.5268]
[1643830811741,0.72471203,2717.0,2716.4,0.1839]
[1643830811941,0.16181401,2716.6,2716.4,0.1839]
[1643830812942,0.16181401,2716.6,2716.1,1.0]
[1643830813744,0.16181401,2716.6,2716.0,3.64239996]
[1643830813942,2.27528034,2716.6,2716.0,3.64239996]
[1643830814195,0.16181401,2716.6,2716.0,3.64239996]
[1643830814390,0.86244004,2716.3,2716.0,3.64239996]
[1643830814590,0.86244004,2716.3,2716.0,0.13819996]
[1643830814789,0.16181401,2716.6,2716.0,0.13819996]
[1643830814993,1.8409292,2716.8,2716.0,0.13819996]
[1643830815291,2.1409292,2716.8,2716.0,0.13819996]
[1643830815691,1.8409292,2716.8,2716.0,0.13819996]
[1643830815892,0.00505862,2717.1,2716.3,0.90221177]
[1643830816095,0.00505862,2717.1,2716.4,0.7139]
[1643830816292,0.00025514,2717.1,2716.4,0.53]
[1643830816490,0.2007181,2717.3,2716.4,0.53]
[1643830816694,0.00220933,2717.1,2716.2,4.5183]
[1643830817092,1.08426624,2716.8,2716.2,4.5183]
[1643830819341,1.1839,2716.5,2715.9,0.00531921]
[1643830819538,2.31546249,2716.4,2715.9,0.00531921]
[1643830819840,0.9206901,2716.0,2715.9,0.00531921]
[1643830820037,4.9045901,2716.0,2715.1,0.1841]
[1643830820240,2.39759635,2715.9,2715.1,0.1841]
[1643830820437,0.3,2715.9,2715.6,0.02127956]
[1643830820638,0.8868242,2715.8,2715.6,0.02127956]
[1643830821238,0.8868242,2715.8,2715.3,0.17693027]
[1643830821438,0.9206901,2716.0,2715.6,0.00531961]
[1643830821673,0.1841,2716.2,2715.6,0.00531961]
[1643830822073,0.9206888,2716.1,2715.6,0.00531961]
[1643830822273,0.3,2716.0,2715.6,0.00531961]
[1643830822473,0.4841,2716.0,2715.1,1.10484]
[1643830822673,0.4841,2716.0,2715.7,0.00531944]
[1643830822874,0.74458779,2715.8,2715.7,0.00531944]
[1643830823274,1.04458779,2715.8,2715.7,0.00531944]
[1643830823675,1.04458779,2715.8,2715.1,0.1841]
[1643830823876,1.04458779,2715.8,2715.6,0.00312331]
[1643830824176,0.15448479,2715.7,2715.6,0.00312331]
[1643830824787,0.15448479,2715.7,2715.0,3.63789996]
[1643830824978,0.15448479,2715.7,2715.5,0.0053229]
[1643830825432,2.52624819,2715.7,2715.5,0.0053229]
[1643830825631,0.3,2715.6,2715.5,0.0053229]
[1643830825832,4.5841,2715.6,2715.5,0.0053229]
[1643830826030,0.9209657,2715.2,2714.7,0.1841]
[1643830826232,1.2209657,2715.2,2715.0,0.02129524]
[1643830826431,1.73708642,2715.2,2715.0,0.02129524]
[1643830826632,2.03708642,2715.2,2715.0,0.02129524]
[1643830826832,1.73708642,2715.2,2715.0,0.02129524]
[1643830827137,2.03708642,2715.2,2714.7,0.1841]
[1643830827531,2.03708642,2715.2,2715.0,0.00532353]
[1643830827532,1.2209657,2715.2,2715.0,0.00532353]
[1643830827733,0.9208754,2715.4,2715.0,0.00532353]
[1643830828133,1.2208754,2715.4,2715.0,0.00532353]
[1643830828532,2.0703299,2715.4,2714.7,0.1841]
[1643830828738,2.0703299,2715.4,2715.1,0.00532341]
[1643830829177,0.9208754,2715.4,2715.1,0.00532341]
[1643830829484,0.1841,2715.6,2715.1,0.00532341]
[1643830829682,1.1048886,2715.8,2714.7,0.1841]
[1643830829877,0.3,2715.7,2714.7,0.1841]
[1643830830078,0.3,2715.7,2715.1,0.00532336]
[1643830830280,0.72856429,2715.5,2715.1,0.00532336]
[1643830830487,1.64943229,2715.5,2715.1,0.00532336]
[1643830830683,1.94943229,2715.5,2715.1,0.00532336]
[1643830830880,1.94943229,2715.5,2714.7,1.10491]
[1643830831081,1.94943229,2715.5,2715.2,0.0053233]
[1643830831082,0.920868,2715.5,2715.2,0.0053233]
[1643830831284,0.0042062,2716.3,2715.3,0.1841]
[1643830831285,0.1841,2716.3,2715.3,0.1841]
[1643830831485,0.1841,2716.3,2715.4,0.92056]
[1643830831680,0.9205385,2716.6,2715.5,0.1841]
[1643830831880,1.61336596,2716.5,2715.5,0.1841]
[1643830832082,0.6737614,2715.8,2715.5,0.1841]
[1643830832285,0.6737614,2715.8,2715.5,0.20539294]
[1643830833329,0.6737614,2715.8,2715.5,0.1841]
[1643830833529,0.6737614,2715.8,2715.5,0.1894229]
[1643830834531,0.1841,2716.4,2715.5,0.1841]
[1643830834729,0.1841,2716.4,2715.5,0.1894229]
[1643830835131,0.9206026,2716.3,2715.5,0.1894229]
[1643830835331,0.3,2716.2,2715.5,0.0053229]
[1643830835530,0.91056941,2716.0,2715.5,0.0053229]
[1643830835730,0.91056941,2716.0,2715.4,0.19499057]
[1643830836033,0.91056941,2716.0,2715.7,0.00532267]
[1643830836872,0.91056941,2716.0,2715.4,2.02145748]
[1643830837073,0.91056941,2716.0,2715.7,0.00532267]
[1643830838076,0.91056941,2716.0,2715.4,2.02145748]
[1643830838277,0.91056941,2716.0,2715.7,0.00532267]
[1643830838976,1.83125931,2716.0,2715.7,0.00532267]
[1643830839377,1.83125931,2716.0,2715.3,0.1841]
[1643830839576,1.83125931,2716.0,2715.7,0.00532267]
[1643830840428,1.83125931,2716.0,2715.3,1.1841]
[1643830840639,2.00810175,2716.0,2715.3,1.1841]
[1643830840829,2.00810175,2716.0,2715.7,0.00532267]
[1643830841633,2.00810175,2716.0,2715.3,0.1841]
[1643830842030,2.00810175,2716.0,2715.7,0.00532267]
[1643830842430,1.83125931,2716.0,2715.7,0.00532267]
[1643830842929,1.83125931,2716.0,2715.2,3.22720621]
[1643830843130,1.83125931,2716.0,2715.3,0.10831767]
[1643830843430,1.83125931,2716.0,2715.3,1.10831767]
[1643830843631,1.99534954,2716.0,2715.4,0.10831767]
[1643830843830,1.99534954,2716.0,2715.5,0.10831767]
[1643830844031,1.83125931,2716.0,2715.3,1.0]
[1643830844296,1.83125931,2716.0,2715.4,0.10843498]
[1643830844476,1.438464,2715.9,2715.1,1.1841]
[1643830844877,1.438464,2715.9,2715.2,0.10868817]
[1643830845482,1.438464,2715.9,2715.4,0.00532754]
[1643830845780,0.90939159,2715.6,2715.4,0.00532754]
[1643830845978,0.77909464,2715.6,2715.4,0.00532754]
[1643830846479,0.77909464,2715.6,2715.1,0.1841]
[1643830846681,0.77909464,2715.6,2715.2,0.07825745]
[1643830846883,0.77909464,2715.6,2715.4,0.0053276]
[1643830846884,6.84235864,2715.5,2715.4,0.0053276]
[1643830847085,4.39302922,2715.5,2715.4,0.0053276]
[1643830847282,3.69302922,2715.5,2715.4,0.0053276]
[1643830847481,3.87712922,2715.5,2715.4,0.0053276]
[1643830847682,3.87712922,2715.5,2714.3,0.1841]
[1643830847683,6.57712922,2715.5,2714.3,0.1841]
[1643830847931,0.97576783,2714.7,2714.6,0.07808229]
[1643830848131,0.83134738,2714.7,2714.6,0.07808229]
[1643830848335,0.83134738,2714.7,2714.3,0.07808229]
[1643830848528,0.83134738,2714.7,2714.4,0.07808229]
[1643830848728,0.83134738,2714.7,2714.2,0.8545]
[1643830848729,0.83134738,2714.7,2714.5,0.07808229]
[1643830848930,0.83134738,2714.7,2714.2,0.8545]
[1643830849127,1.75244178,2714.7,2714.4,0.00312892]
[1643830850127,0.9210944,2714.7,2714.3,0.07808297]
[1643830850330,0.9210944,2714.7,2714.4,0.00312892]
[1643830851128,1.68156441,2714.7,2714.4,0.00312892]
[1643830851329,1.68156441,2714.7,2714.3,0.07808297]
[1643830851676,1.68156441,2714.7,2714.2,0.8545]
[1643830851677,1.51327929,2714.6,2714.4,0.00312892]
[1643830852076,1.81327929,2714.6,2714.4,0.00312892]
[1643830852278,0.3,2714.6,2714.4,0.00312892]
[1643830852477,0.3,2714.6,2714.2,0.8545]
[1643830852478,1.86566441,2714.7,2714.2,0.8545]
[1643830852683,1.86566441,2714.7,2714.4,0.00312966]
[1643830853677,1.86566441,2714.7,2714.2,0.8545]
[1643830853879,1.68156441,2714.7,2713.9,0.36396706]
[1643830854078,1.68156441,2714.7,2714.0,0.07808672]
[1643830854281,1.98156441,2714.7,2714.0,0.07808672]
[1643830854477,1.93156441,2714.7,2714.0,0.07808672]
[1643830854678,1.93156441,2714.7,2714.0,0.02808672]
[1643830854879,1.06047001,2714.7,2714.0,0.02808672]
[1643830855082,0.3,2714.7,2714.0,0.02808672]
[1643830855278,0.45709164,2714.9,2714.1,0.1842]
[1643830855529,0.3,2714.9,2714.1,0.1842]
[1643830855735,0.9210253,2715.0,2714.1,0.1842]
[1643830855936,0.1841,2715.4,2714.5,1.64993]
[1643830856130,0.81091742,2715.5,2714.5,1.64993]
[1643830856131,0.81091742,2715.5,2714.6,0.7141]
[1643830856530,0.1841,2715.8,2714.9,0.18938163]
[1643830856733,0.1841,2715.8,2715.0,0.1841]
[1643830856933,3.2088,2715.9,2715.0,0.1841]
[1643830857331,1.1048307,2715.9,2714.8,1.1841]
[1643830857532,1.1048307,2715.9,2715.3,0.0053337]
[1643830857730,0.84440885,2715.5,2715.3,0.0053337]
[1643830858530,0.84440885,2715.5,2714.9,0.17077023]
[1643830858731,0.3,2715.8,2715.3,0.00533375]
[1643830859176,1.1048307,2715.9,2715.3,0.00533375]
[1643830859778,0.90434976,2715.4,2714.8,1.1841]
[1643830859977,0.90434976,2715.4,2715.1,0.02133729]
[1643830860377,0.9208257,2715.6,2715.1,0.02133729]
[1643830860884,0.9208257,2715.6,2714.8,0.38180461]
[1643830861178,0.9208257,2715.6,2715.2,0.00533381]
[1643830861378,0.77143481,2715.5,2715.2,0.00533381]
[1643830862183,0.77143481,2715.5,2714.8,0.1841]
[1643830862378,0.9208257,2715.6,2715.2,0.00533381]
[1643830863239,0.9208257,2715.6,2714.8,0.1841]
[1643830863444,0.9208713,2715.2,2714.8,0.1841]
[1643830863644,0.9208713,2715.2,2714.9,0.02133821]
[1643830864142,0.89482581,2715.0,2714.9,0.02133821]
[1643830864638,0.89482581,2715.0,2714.7,0.00243398]
[1643830864838,0.9209702,2714.9,2714.8,0.00533427]
[1643830865644,0.9209702,2714.9,2714.5,0.00243398]
[1643830865946,0.9209702,2714.9,2714.7,0.00533439]
[1643830866540,0.9208864,2715.2,2714.7,0.00533439]
[1643830866983,2.0257978,2715.8,2714.6,1.16070136]
[1643830867183,2.0257978,2715.8,2714.8,0.00533427]
[1643830867382,2.0257978,2715.8,2714.9,0.1841]
[1643830867983,0.76124797,2715.5,2714.9,0.1841]
[1643830868182,1.68209687,2715.5,2714.9,0.1841]
[1643830868488,1.68209687,2715.5,2715.2,0.00533381]
[1643830868982,0.1841,2715.8,2715.3,0.18784112]
[1643830869185,0.1841,2716.1,2715.4,0.53]
[1643830869384,0.1839,2716.6,2715.4,0.71409]
[1643830869586,0.1839,2716.6,2715.5,0.1839]
[1643830869784,0.1839,2716.6,2715.9,0.92038]
[1643830869983,0.7571361,2716.2,2715.9,0.92038]
[1643830870626,0.17197434,2716.5,2715.9,0.92038]
[1643830870828,0.17197434,2716.5,2715.6,2.8460237]
[1643830871031,0.17197434,2716.5,2715.6,0.0052737]
[1643830871032,0.1839,2716.4,2715.6,0.0052737]
[1643830871625,0.1683523,2715.8,2715.6,0.0052737]
[1643830871829,0.68185618,2715.7,2715.5,4.4943]
[1643830872127,0.68185618,2715.7,2715.6,0.00527366]
[1643830872526,0.68185618,2715.7,2715.1,0.1841]
[1643830873130,1.60266978,2715.7,2715.1,0.1841]
[1643830874677,0.68185618,2715.7,2715.1,0.1841]
[1643830874875,1.55239255,2715.6,2714.8,1.3435]
[1643830875078,1.55239255,2715.6,2715.0,1.0]
[1643830875282,0.1841,2715.9,2715.0,1.36819]
[1643830875484,1.79707652,2717.1,2715.1,0.53]
[1643830875485,0.1841,2716.3,2715.1,0.53]
[1643830875678,6.6141657,2717.2,2715.4,1.84091]
[1643830875679,0.00223135,2715.6,2715.4,1.84091]
[1643830875878,0.00223135,2715.6,2715.5,5.14557802]
[1643830876279,0.00223135,2715.6,2715.5,6.14557802]
[1643830876477,1.5521373,2716.1,2715.5,6.14557802]
[1643830876679,1.5521373,2716.1,2715.6,0.92049]
[1643830876877,0.00533304,2715.7,2715.6,1.92049]
[1643830877079,0.00533304,2715.7,2715.6,2.84093]
[1643830877281,0.00533304,2715.7,2715.6,5.79093]
[1643830877479,0.00533304,2715.7,2715.6,5.97502]
[1643830877680,0.93028514,2717.1,2715.6,5.79093]
[1643830877681,0.1841,2716.7,2715.6,5.79093]
[1643830877930,1.55186101,2716.6,2715.9,0.92048]
[1643830878129,1.73576101,2716.5,2715.9,0.92048]
[1643830878332,1.55186101,2716.4,2715.9,0.92048]
[1643830878930,1.73576101,2716.4,2715.9,0.92048]
[1643830879130,1.55719337,2716.3,2715.9,0.92048]
[1643830879331,0.00533236,2716.3,2715.9,0.92048]
[1643830880129,0.1839,2716.4,2715.9,0.92048]
[1643830880335,0.00533242,2716.2,2715.9,0.92048]
[1643830880931,0.00533242,2716.2,2715.7,3.3524]
[1643830881336,0.1839,2716.4,2715.7,3.3524]
[1643830881531,0.00533259,2716.1,2715.8,1.0]
[1643830881976,0.00533259,2716.1,2715.7,5.19316]
[1643830882577,0.1839,2716.4,2715.8,1.0]
[1643830882877,0.0022384,2716.0,2715.8,1.0]
[1643830883676,1.55093335,2716.3,2715.7,6.11358]
[1643830883881,1.55093335,2716.3,2715.8,1.0]
[1643830884078,0.0022384,2716.0,2715.8,1.0]
[1643830884976,1.55093335,2716.3,2715.8,1.0]
[1643830885177,0.0053395,2716.0,2715.8,1.0]
[1643830886024,0.1839,2716.4,2715.8,1.0]
[1643830886222,0.1839,2716.4,2715.7,6.11358]
[1643830886223,1.55056151,2716.3,2715.7,6.11358]
[1643830886430,0.00491068,2716.0,2715.7,6.11358]
[1643830886725,0.00491068,2716.0,2715.7,3.3524]
[1643830886923,1.07338824,2716.0,2715.7,3.3524]
[1643830887126,1.07338824,2716.0,2715.4,0.18881189]
[1643830887325,1.07338824,2716.0,2715.2,0.1841]
[1643830887326,3.63653872,2715.9,2715.2,0.1841]
[1643830887526,1.55055665,2715.8,2715.0,0.1841]
[1643830887723,1.55055665,2715.8,2715.4,0.00310871]
[1643830888123,0.73179912,2715.5,2715.4,0.00310871]
[1643830888325,0.93108301,2715.5,2715.4,0.00310871]
[1643830888525,0.93108301,2715.5,2715.1,1.8412]
[1643830888825,0.93108301,2715.5,2715.3,0.00310877]
[1643830889028,1.1047991,2715.9,2715.3,0.00310877]
[1643830889286,1.85056777,2715.8,2715.3,0.00310877]
[1643830889486,5.20619111,2716.3,2715.3,0.00310877]
[1643830889487,0.4841,2716.1,2715.3,0.00310877]
[1643830889686,0.3,2716.1,2715.0,0.1841]
[1643830889887,0.1841,2716.2,2715.0,1.1841]
[1643830890089,2.62017804,2716.1,2715.5,0.92047]
[1643830890289,1.18967319,2716.1,2715.5,0.92047]
[1643830890787,0.3,2716.1,2715.7,0.92047]
[1643830891187,0.0053351,2715.9,2715.7,0.92047]
[1643830892191,0.98262033,2716.5,2715.7,0.92047]
[1643830892393,0.0053351,2715.9,2715.7,0.92047]
[1643830893225,0.4394351,2716.5,2715.7,0.92047]
[1643830893426,1.55095301,2716.4,2715.7,1.84084]
[1643830893627,0.1839,2716.8,2715.7,2.84084]
[1643830893825,3.1349,2716.9,2716.0,0.92034]
[1643830893826,1.55103338,2716.7,2716.0,0.92034]
[1643830894027,1.55103338,2716.6,2716.0,0.92034]
[1643830894230,1.55103338,2717.0,2716.0,0.92034]
[1643830894428,0.19318751,2716.5,2716.0,0.92034]
[1643830894625,1.55103338,2716.4,2716.0,0.92034]
[1643830894828,1.55103338,2716.4,2716.0,1.92034]
[1643830895027,0.88305491,2716.2,2716.0,1.92034]
[1643830895227,0.19318751,2716.5,2716.0,0.92034]
[1643830895428,1.55094377,2716.4,2716.0,0.92034]
[1643830896028,1.55317134,2716.4,2716.0,0.92034]
[1643830896229,0.00222757,2716.4,2716.0,0.92034]
[1643830896429,1.55342731,2716.4,2716.0,0.92034]
[1643830896682,0.00222757,2716.4,2716.0,0.92034]
[1643830896883,0.94942852,2716.5,2716.0,1.92034]
[1643830897079,0.94942852,2716.5,2716.0,0.92034]
[1643830897282,0.94942852,2716.5,2715.9,1.84067]
[1643830897283,0.00533917,2716.3,2715.9,1.84067]
[1643830897583,1.55198797,2716.2,2715.9,1.84067]
[1643830897782,1.55198797,2716.2,2715.9,2.84067]
[1643830898180,1.7318547,2716.2,2715.9,1.84067]
[1643830898381,0.18520607,2716.2,2715.9,1.84067]
[1643830898583,0.18520607,2716.2,2715.8,3.451]
[1643830898983,1.55301309,2716.1,2715.7,1.84076]
[1643830899182,1.55301309,2716.1,2715.6,0.46564049]
[1643830899384,1.85301309,2716.1,2715.6,0.46029993]
[1643830899582,1.85301309,2716.1,2715.6,0.46564037]
[1643830899583,1.5583526,2716.0,2715.6,0.46564037]
[1643830899781,1.55301309,2715.9,2715.6,0.28174037]
[1643830900179,0.00533951,2716.0,2715.6,0.28174037]
[1643830900626,0.17986673,2716.2,2715.6,0.27639993]
[1643830900826,0.00533943,2716.0,2715.6,0.28174029]
[1643830901028,1.55408751,2715.9,2715.6,0.00534036]
[1643830901825,1.55408751,2715.9,2715.2,3.3001]
[1643830902028,0.16751396,2715.7,2715.6,0.00312181]
[1643830902224,1.72160147,2715.7,2715.6,0.00312181]
[1643830902824,1.72160147,2715.7,2715.3,1.84111]
[1643830903024,0.16751396,2715.7,2715.3,1.84111]
[1643830903225,0.16751396,2715.7,2715.5,0.00312187]
[1643830904277,0.81925671,2715.8,2715.3,1.84111]
[1643830904480,1.55442303,2715.7,2715.5,0.00534519]
[1643830904681,0.81925671,2715.8,2715.5,0.00534519]
[1643830904877,0.81925671,2715.8,2715.5,0.92593519]
[1643830905082,1.55451147,2715.7,2715.5,0.92593519]
[1643830905284,0.81925671,2715.8,2715.5,0.92593519]
[1643830905480,0.81925671,2715.8,2715.5,0.92059]
[1643830905681,0.81925671,2715.8,2715.5,0.92593513]
[1643830906281,0.00534411,2716.0,2715.5,0.92593513]
[1643830906481,1.55460171,2715.9,2715.5,0.92059]
[1643830906882,0.00534411,2716.0,2715.5,0.92593513]
[1643830907185,1.55468276,2715.9,2715.5,0.92593513]
[1643830907381,2.45370464,2715.9,2715.5,0.92593513]
[1643830907583,1.55468276,2715.8,2715.5,0.92593513]
[1643830907782,1.55468276,2715.8,2715.5,0.92059]
[1643830908033,1.55468276,2715.8,2715.6,0.00534508]
[1643830908530,0.00534415,2716.0,2715.6,0.00534508]
[1643830908732,1.55492008,2715.9,2715.6,0.00534508]
[1643830908932,1.55492008,2715.9,2715.5,0.92059]
[1643830909133,1.75448298,2715.8,2715.5,0.92059]
[1643830909331,1.55492008,2715.7,2715.6,0.00534516]
[1643830909747,0.1995629,2715.8,2715.6,0.00534516]
[1643830910135,0.1995629,2715.8,2715.5,0.92059]
[1643830910136,1.55574836,2715.7,2715.5,0.92059]
[1643830910534,1.55574836,2715.7,2715.6,0.00534508]
[1643830911343,1.55574836,2715.7,2715.5,0.92059]
[1643830911535,1.55574836,2715.7,2715.5,0.00534513]
[1643830912386,1.73674587,2716.0,2715.5,0.00534513]
[1643830912584,1.5572811,2715.9,2715.3,3.68214]
[1643830912783,1.5572811,2715.9,2715.5,0.00534519]
[1643830913582,0.19240451,2715.7,2715.5,0.00534519]
[1643830913782,1.55759002,2715.6,2715.3,3.68214]
[1643830913983,1.73674591,2716.0,2715.6,0.00534508]
[1643830914301,1.55772151,2715.9,2715.6,0.00534508]
[1643830914683,1.55612166,2715.9,2715.6,0.00534508]
[1643830915084,0.16533596,2715.8,2715.3,3.68214]
[1643830915285,0.16533596,2715.8,2715.6,0.00534512]
[1643830916134,0.16533596,2715.8,2715.3,1.84111]
[1643830916528,0.16533596,2715.8,2715.6,0.00524486]
[1643830916937,0.16533596,2715.8,2715.2,3.4842]
[1643830916938,2.3,2715.7,2715.2,0.1841]
[1643830917131,0.1841,2715.7,2715.1,0.02098313]
[1643830917332,0.4841,2715.7,2715.1,0.02098313]
[1643830917534,0.4841,2715.7,2714.8,1.31433398]
[1643830917732,0.1841,2715.7,2714.8,1.31433398]
[1643830917930,0.70030354,2715.3,2714.8,1.31433398]
[1643830918134,0.20100584,2715.1,2714.8,0.18653398]
[1643830918332,0.20100584,2715.1,2714.8,1.18653398]
[1643830919382,0.70030354,2715.3,2714.8,1.18653398]
[1643830919978,0.70030354,2715.3,2714.9,0.00534523]
[1643830920481,0.8619932,2715.3,2714.9,0.00534523]
[1643830920676,0.16168966,2715.3,2714.9,0.00534523]
[1643830921078,0.16168966,2715.3,2714.8,1.18653398]
[1643830921277,0.16168966,2715.3,2715.0,0.00534517]
[1643830921477,0.9208282,2715.4,2715.0,0.00534517]
[1643830921680,3.3407,2715.8,2715.0,1.84659517]
[1643830921877,3.3407,2715.8,2715.0,2.03069517]
[1643830922076,0.1841,2715.8,2715.1,0.53]
[1643830922278,3.11137157,2716.1,2715.2,0.1841]
[1643830922479,3.11137157,2716.1,2715.1,1.53]
[1643830922480,0.15794339,2715.4,2715.3,0.00534483]
[1643830923328,0.15794339,2715.4,2715.0,1.8413]
[1643830923627,0.87549366,2715.4,2715.2,0.00534488]
[1643830924627,0.87549366,2715.4,2714.8,3.02810398]
[1643830924829,0.87549366,2715.4,2715.2,0.00534494]
[1643830925829,0.920795,2715.5,2714.8,3.02810398]
[1643830926030,0.920795,2715.5,2715.2,0.00534494]
[1643830926230,0.9207207,2715.7,2715.2,0.00534494]
[1643830926430,0.1841,2715.6,2715.2,0.00534494]
[1643830927089,0.1841,2715.6,2715.1,0.92071]
[1643830927291,0.1841,2715.6,2715.3,0.00534483]
[1643830928289,0.1841,2715.6,2715.1,0.92071]
[1643830928490,0.1841,2715.6,2715.3,0.00534477]
[1643830929391,0.1841,2715.6,2715.1,0.92071]
[1643830929592,0.1841,2715.6,2715.3,0.00534477]
[1643830930633,0.1841,2715.6,2715.1,0.92071]
[1643830930931,1.68404846,2715.7,2715.3,0.00534477]
[1643830931731,1.68404846,2715.7,2715.1,0.92071]
[1643830932048,1.8665109,2715.7,2715.4,0.00534471]
[1643830933134,2.4841,2715.6,2714.8,0.00243398]
[1643830933337,6.57466562,2715.5,2715.4,0.00534465]
[1643830933534,14.75876561,2715.5,2715.4,0.00534465]
[1643830933733,14.75876561,2715.5,2714.8,0.02138357]
[1643830933734,5.35,2715.4,2714.8,0.02138357]
[1643830934038,1.65962089,2714.9,2714.2,0.1841]
[1643830934294,1.8426012,2714.5,2714.3,0.00244157]
[1643830934487,3.01811791,2714.4,2714.3,0.00244157]
[1643830934690,2.4801238,2714.4,2714.3,0.00244157]
[1643830934888,2.4801238,2714.4,2714.2,0.1841]
[1643830935086,1.72845922,2714.3,2714.2,0.1841]
[1643830935293,0.16645333,2714.3,2714.2,0.1841]
[1643830935688,0.16645333,2714.3,2714.2,0.18929186]
[1643830936489,0.16249533,2714.3,2714.2,2.5841]
[1643830936692,0.1586,2714.7,2714.2,4.4]
[1643830936897,0.1458,2714.7,2714.6,3.86299789]
[1643830937093,0.1458,2714.7,2714.6,4.04709789]
[1643830937290,0.1458,2714.7,2714.6,5.04709789]
[1643830938541,0.1458,2714.7,2714.6,5.23126789]
[1643830938737,0.1458,2714.7,2714.6,6.87489789]
[1643830938937,0.1458,2714.7,2714.6,9.14036975]
[1643830939138,0.1458,2714.7,2714.6,9.67036975]
[1643830939737,0.10002569,2714.7,2714.6,9.67036975]
[1643830941438,0.0988689,2714.7,2714.6,9.67036975]
[1643830941685,1.841511,2716.0,2714.7,5.3488]
[1643830941686,7.929e-05,2714.9,2714.7,5.3488]
[1643830941889,1.56128555,2715.9,2715.5,0.92054]
[1643830942092,0.18072735,2716.4,2715.6,0.53]
[1643830942286,1.56108481,2716.3,2715.6,0.53]
[1643830942693,0.69971146,2717.0,2715.8,0.95462192]
[1643830942892,0.69971146,2717.0,2715.9,3.47485]
[1643830942893,1.5608893,2717.0,2715.9,3.47485]
[1643830943388,1.5608893,2717.0,2716.0,1.0]
[1643830943593,0.89757451,2716.8,2716.1,0.53]
[1643830943788,1.5608893,2716.7,2716.3,0.92023]
[1643830943987,1.5608893,2716.7,2716.4,1.45025]
[1643830944188,6.8796867,2717.8,2716.4,1.45025]
[1643830944189,0.00226701,2716.6,2716.4,1.45025]
[1643830944610,6.701e-05,2716.6,2716.5,7.53417]
[1643830944793,0.00906669,2717.0,2716.6,5.35]
[1643830945088,1.47076465,2717.8,2716.9,6.4225293]
[1643830945289,1.56046007,2717.7,2717.0,0.53]
[1643830945551,1.56046007,2717.7,2717.1,2.0]
[1643830945750,1.56046007,2717.7,2717.2,0.7139]
[1643830946151,1.56046007,2717.7,2717.2,0.53]
[1643830946346,1.56046007,2717.7,2716.9,1.7139]
[1643830946549,1.56046007,2717.7,2717.1,1.0]
[1643830946741,1.56046007,2717.7,2716.9,0.53]
[1643830947142,0.82846239,2717.6,2716.9,0.53]
[1643830947444,1.56046007,2717.5,2716.9,0.53]
[1643830947643,1.56046007,2717.5,2716.5,6.7775]
[1643830947842,1.56046007,2717.5,2716.5,6.5936]
[1643830948042,1.56046007,2717.5,2716.6,1.0]
[1643830948242,1.56046007,2717.5,2716.5,6.5936]
[1643830948243,0.18756019,2716.8,2716.5,6.5936]
[1643830948543,1.61998456,2717.5,2716.5,6.5936]
[1643830948747,1.61998456,2717.5,2716.2,0.53]
[1643830948748,1.86084574,2717.4,2716.2,0.53]
[1643830948947,0.00535568,2716.8,2716.1,0.1839]
[1643830949188,1.56084574,2716.7,2715.2,2.0]
[1643830949388,1.56084574,2716.7,2715.1,0.00535902]
[1643830949389,1.56084574,2716.6,2715.1,0.00535902]
[1643830949587,3.93227134,2716.6,2715.1,0.00535902]
[1643830949785,0.67116948,2715.9,2715.1,0.15141403]